fUSD/lending_fUSD_20250118
["ID","MTS","AMOUNT","RATE_DAILY","PERIOD"]
[349484837,1737212924642,-500.0,0.00019589,2]
[349484838,1737212924654,-500.0,0.00019589,2]
[349484839,1737212924666,-166.78928183,0.00019589,2]
[349484840,1737212924677,-275.213206,0.00019589,2]
[349484841,1737212924689,-500.0,0.00019589,2]
[349484842,1737212924700,-500.0,0.00019589,2]
[349484843,1737212924711,-500.0,0.00019589,2]
[349484844,1737212924723,-500.0,0.00019589,2]
[349484845,1737212924864,-500.0,0.00019589,2]
[349484846,1737212924875,-500.0,0.00019589,2]
[349484847,1737212924886,-500.0,0.00019589,2]
[349484848,1737212924898,-500.0,0.00019589,2]
[349484849,1737212924909,-500.0,0.00019589,2]
[349484850,1737212924920,-461.83929782,0.00019589,2]
[349484851,1737212924931,-511.92072196,0.00019589,2]
[349484852,1737212924942,-500.0,0.00019589,2]
[349484853,1737212924953,-500.0,0.00019589,2]
[349484854,1737212924965,-500.0,0.00019589,2]
[349484855,1737212924976,-500.0,0.00019589,2]
[349484856,1737212924987,-500.0,0.00019589,2]
[349484857,1737212924998,-500.0,0.00019589,2]
[349484858,1737212925009,-500.0,0.00019589,2]
[349484859,1737212925020,-500.0,0.00019589,2]
[349484860,1737212925031,-476.44805618,0.00019589,2]
[349484861,1737212925043,-500.0,0.00019589,2]
[349484862,1737212925056,-500.0,0.00019589,2]
[349484863,1737212925067,-500.0,0.00019589,2]
[349484864,1737212925079,-500.0,0.00019589,2]
[349484865,1737212925090,-160.38590834,0.00019589,2]
[349484866,1737212925101,-500.0,0.00019589,2]
[349484867,1737212925112,-500.0,0.00019589,2]
[349484868,1737212925124,-500.0,0.00019589,2]
[349484869,1737212925135,-271.04,0.00019589,2]
[349484870,1737212925146,-500.0,0.00019589,2]
[349484871,1737212925157,-500.0,0.00019589,2]
[349484872,1737212925168,-500.0,0.00019589,2]
[349484873,1737212925180,-500.0,0.00019589,2]
[349484874,1737212925191,-500.0,0.00019589,2]
[349484875,1737212925203,-500.0,0.00019589,2]
[349484876,1737212925217,-500.0,0.00019589,2]
[349484877,1737212925229,-500.0,0.00019589,2]
[349484878,1737212925240,-500.0,0.00019589,2]
[349484879,1737212925251,-500.0,0.00019589,2]
[349484880,1737212925263,-500.0,0.00019589,2]
[349484881,1737212925273,-500.0,0.00019589,2]
[349484882,1737212925285,-500.0,0.00019589,2]
[349484883,1737212925447,-500.0,0.00019589,2]
[349484884,1737212925460,-210.33792228,0.00019589,2]
[349484885,1737212925476,-379.01686349,0.00019589,2]
[349484886,1737212925487,-500.0,0.00019589,2]
[349484887,1737212925499,-500.65315437,0.00019589,2]
[349484888,1737212925510,-500.0,0.00019589,2]
[349484889,1737212925521,-500.0,0.00019589,2]
[349484890,1737212925532,-500.0,0.00019589,2]
[349484891,1737212925543,-380.5802,0.00019589,2]
[349484892,1737212925554,-1900.0,0.00019589,2]
[349484893,1737212925565,-1000.0,0.00019589,2]
[349484894,1737212925576,-1000.0,0.00019589,2]
[349484895,1737212925587,-1000.0,0.00019589,2]
[349484896,1737212925598,-1000.0,0.00019589,2]
[349484897,1737212925609,-1000.0,0.00019589,2]
[349484898,1737212925623,-1000.0,0.00019589,2]
[349484899,1737212925634,-1000.0,0.00019589,2]
[349484900,1737212925646,-1000.0,0.00019589,2]
[349484901,1737212925657,-1000.0,0.00019589,2]
[349484902,1737212925669,-1000.0,0.00019589,2]
[349484903,1737212925680,-1000.0,0.00019589,2]
[349484904,1737212925691,-500.0,0.00019589,2]
[349484905,1737212925703,-12956.18043503,0.00019589,2]
[349484906,1737212925712,-1000.0,0.0001959,2]
[349484907,1737212925724,-150.0,0.00019593,2]
[349484908,1737212925734,-200.0,0.00019594,2]
[349484909,1737212925743,-2000.0,0.00019594,2]
[349484910,1737212925752,-200.0,0.00019594,2]
[349484911,1737212925762,-500.0,0.00019599,2]
[349484912,1737212925771,-500.0,0.00019599,2]
[349484913,1737212925780,-500.0,0.00019599,2]
[349484914,1737212925790,-500.0,0.00019599,2]
[349484915,1737212925799,-500.0,0.00019599,2]
[349484916,1737212925808,-299.71053218,0.00019599,2]
[349484917,1737212925819,-500.0,0.00019599,2]
[349484918,1737212925828,-500.0,0.00019599,2]
[349484919,1737212925838,-500.0,0.00019599,2]
[349484920,1737212925847,-500.0,0.00019599,2]
[349484921,1737212925856,-500.0,0.00019599,2]
[349484922,1737212925865,-634.11372996,0.00019599,2]
[349484923,1737212925875,-500.0,0.00019599,2]
[349484924,1737212925884,-151.0,0.00019599,2]
[349484925,1737212925894,-1058.665786,0.00019599,2]
[349484926,1737212925903,-1058.665786,0.00019599,2]
[349484927,1737212925912,-151.0,0.00019599,2]
[349484928,1737212925922,-39849.66373083,0.000196,2]
[349484929,1737212925936,-151.0,0.000196,2]
[349484930,1737212925947,-177.354632,0.000196,2]
[349484931,1737212925959,-154.158162,0.000196,2]
[349484932,1737212925973,-151.0,0.000196,2]
[349484933,1737212925985,-151.0,0.000196,2]
[349484934,1737212925996,-153.80145117,0.000196,2]
[349484935,1737212926008,-178.187664,0.000196,2]
[349484936,1737212926020,-643.82,0.000196,2]
[349484937,1737212926031,-575.20677869,0.000196,2]
[349484938,1737212926042,-500.0,0.000196,2]
[349484939,1737212926054,-500.0,0.000196,2]
[349484940,1737212926066,-500.0,0.000196,2]
[349484941,1737212926077,-500.0,0.000196,2]
[349484942,1737212926088,-500.0,0.000196,2]
[349484943,1737212926099,-500.0,0.000196,2]
[349484944,1737212926111,-500.0,0.000196,2]
[349484945,1737212926122,-500.0,0.000196,2]
[349484946,1737212926133,-500.0,0.000196,2]
[349484947,1737212926145,-1543.46,0.000196,2]
[349484948,1737212926157,-500.0,0.000196,2]
[349484949,1737212926168,-580.3,0.000196,2]
[349484950,1737212926179,-500.0,0.000196,2]
[349484951,1737212926190,-500.0,0.000196,2]
[349484952,1737212926201,-500.0,0.000196,2]
[349484953,1737212926213,-500.0,0.000196,2]
[349484954,1737212926226,-500.0,0.000196,2]
[349484955,1737212926237,-500.0,0.000196,2]
[349484956,1737212926248,-271.13,0.000196,2]
[349484957,1737212926259,-501.61,0.000196,2]
[349484958,1737212926271,-163290.47026712,0.000196,2]
[349484959,1737212957090,-159.12686797,0.00017489,2]
[349484960,1737212957111,-134.87313203,0.00017489,2]
[349484966,1737212965217,7284.42583791,0.00024,120]
[349484967,1737212979968,-82.9540416,0.00017489,2]
[349484968,1737212979997,-276.98,0.00018646,2]
[349484969,1737212980027,-872.0,0.00018653,2]
[349484970,1737212980056,-1000.0,0.00019101,2]
[349484971,1737212980078,-82.9540416,0.00019102,2]
[349484972,1737212980089,-276.98,0.00019102,2]
[349484973,1737212980101,-872.0,0.00019102,2]
[349484974,1737212980116,-1000.0,0.00019102,2]
[349484975,1737212980128,-29225.1319168,0.00019102,2]
[349484994,1737213032062,-500.0,0.00017164,2]
[349484996,1737213032072,-499.992,0.00017164,2]
[349484998,1737213032084,-0.008,0.00017164,2]
[349484999,1737213032093,-500.0,0.0001826,2]
[349485000,1737213032104,-1002.33,0.00018652,2]
[349485001,1737213032114,-500.0,0.00019044,2]
[349485002,1737213032124,-1000.0,0.00019101,2]
[349485003,1737213032133,-2500.0,0.00019101,2]
[349485005,1737213032143,-3236.94265605,0.00019102,2]
[349485006,1737213032154,-12445.12768555,0.00019102,2]
[349485007,1737213032164,-5000.0,0.00019102,2]
[349485008,1737213032173,-1676.2,0.00019102,2]
[349485009,1737213032182,-500.0,0.000192,2]
[349485010,1737213032192,-500.0,0.000192,2]
[349485011,1737213032201,-500.0,0.000192,2]
[349485012,1737213032211,-235.96,0.000192,2]
[349485013,1737213032220,-562.19,0.000192,2]
[349485014,1737213032230,-500.0,0.000192,2]
[349485015,1737213032239,-500.0,0.000192,2]
[349485016,1737213032250,-1479.14,0.000192,2]
[349485017,1737213032260,-500.0,0.000192,2]
[349485018,1737213032271,-500.0,0.000192,2]
[349485019,1737213032281,-281.83,0.000192,2]
[349485020,1737213032290,-374.15,0.000192,2]
[349485021,1737213032300,-500.0,0.000192,2]
[349485022,1737213032310,-500.0,0.000192,2]
[349485023,1737213032319,-500.0,0.00019356,2]
[349485024,1737213032328,-500.0,0.00019356,2]
[349485025,1737213032337,-500.0,0.00019496,2]
[349485026,1737213032348,-500.0,0.00019496,2]
[349485027,1737213032358,-500.0,0.00019502,2]
[349485028,1737213032368,-500.0,0.00019502,2]
[349485029,1737213032378,-500.0,0.00019502,2]
[349485030,1737213032387,-500.0,0.00019502,2]
[349485031,1737213032395,-1479.14,0.00019502,2]
[349485032,1737213032405,-500.0,0.00019502,2]
[349485033,1737213032415,-500.0,0.00019502,2]
[349485034,1737213032423,-500.0,0.00019502,2]
[349485035,1737213032433,-500.0,0.00019502,2]
[349485036,1737213032443,-151.0,0.00019503,2]
[349485037,1737213032453,-198.895524,0.00019503,2]
[349485038,1737213032463,-3919.83058069,0.00019547,7]
[349485039,1737213032473,-3351.06360867,0.00019551,7]
[349485040,1737213032483,-673.66761328,0.00019551,7]
[349485041,1737213032493,-251.30464864,0.00019556,7]
[349485042,1737213032502,-3919.83058069,0.00019562,7]
[349485043,1737213032511,-673.66761328,0.00019563,7]
[349485044,1737213032519,-3919.83058069,0.0001957,7]
[349485045,1737213032528,-500.0,0.00019573,2]
[349485046,1737213032538,-3919.83058069,0.00019576,7]
[349485047,1737213032547,-251.30464864,0.00019584,7]
[349485048,1737213032556,-25221.56785943,0.00019585,7]
[349485049,1737213032566,-191.36,0.00019587,2]
[349485050,1737213032575,-584.5358681,0.00019587,2]
[349485051,1737213032584,-500.0,0.00019587,2]
[349485052,1737213032594,-500.0,0.00019587,2]
[349485053,1737213032603,-500.0,0.00019587,2]
[349485054,1737213032612,-339.28,0.00019587,2]
[349485055,1737213032621,-288.92,0.00019587,2]
[349485056,1737213032630,-500.0,0.00019587,2]
[349485057,1737213032640,-280.49,0.00019587,2]
[349485058,1737213032649,-306.33804435,0.00019588,2]
[349485059,1737213032663,-502.52578093,0.00019588,2]
[349485060,1737213032672,-500.0,0.00019588,2]
[349485061,1737213032685,-500.0,0.00019588,2]
[349485064,1737213032694,-251.30464864,0.00019588,7]
[349485067,1737213032704,-151.0,0.00019589,2]
[349485070,1737213032713,-3351.06360867,0.00019592,7]
[349485072,1737213032722,-25221.56785943,0.00019598,7]
[349485074,1737213032732,-14688.45965503,0.000196,2]
[349485077,1737213032749,-12116.12683049,0.000196,2]
[349485079,1737213032760,-4086.00555063,0.000196,2]
[349485081,1737213032771,-19728.8,0.000196,2]
[349485083,1737213032782,-318.13034269,0.000196,2]
[349485085,1737213032793,-80448.08264845,0.000196,2]
[349485087,1737213032802,-200.32038027,0.000196,2]
[349485089,1737213032812,-630.95971443,0.000196,2]
[349485091,1737213032822,-151.0,0.000196,2]
[349485093,1737213032831,-151.0,0.000196,2]
[349485096,1737213032841,-231.270414,0.000196,2]
[349485097,1737213032850,-151.0,0.000196,2]
[349485100,1737213032860,-151.0,0.000196,2]
[349485102,1737213032870,-2400.0,0.000196,7]
[349485104,1737213032879,-3000.0,0.000196,2]
[349485106,1737213032889,-16511.9385,0.000196,2]
[349485108,1737213032898,-200.0,0.00019601,7]
[349485110,1737213032907,-150.0,0.00019602,2]
[349485111,1737213032917,-150.0,0.00019604,2]
[349485113,1737213032926,-3351.06360867,0.00019605,7]
[349485115,1737213032935,-25221.56785943,0.00019606,7]
[349485117,1737213032945,-251.30464864,0.00019607,7]
[349485119,1737213032954,-251.30464864,0.00019609,7]
[349485121,1737213032963,-150.0,0.00019611,2]
[349485123,1737213032972,-673.66761328,0.00019611,7]
[349485125,1737213032983,-3351.06360867,0.00019613,7]
[349485127,1737213032992,-150.0,0.00019614,2]
[349485129,1737213033001,-200.0,0.00019616,7]
[349485131,1737213033012,-150.0,0.00019617,2]
[349485133,1737213033022,-25221.56785943,0.00019618,7]
[349485135,1737213033031,-3919.83058069,0.00019619,7]
[349485137,1737213033041,-150.0,0.0001962,2]
[349485139,1737213033050,-200.0,0.00019627,7]
[349485141,1737213033060,-150.0,0.00019628,2]
[349485143,1737213033069,-150.0,0.0001963,2]
[349485145,1737213033078,-150.0,0.00019632,2]
[349485147,1737213033087,-673.66761328,0.00019633,7]
[349485149,1737213033096,-150.0,0.00019634,2]
[349485151,1737213033106,-251.30464864,0.00019636,7]
[349485153,1737213033115,-1000.0,0.00019637,2]
[349485155,1737213033125,-150.0,0.00019638,2]
[349485157,1737213033135,-200.0,0.00019638,7]
[349485159,1737213033145,-25221.56785943,0.00019639,7]
[349485161,1737213033154,-3351.06360867,0.0001964,7]
[349485163,1737213033163,-3919.83058069,0.00019641,7]
[349485165,1737213033172,-673.66761328,0.00019644,7]
[349485167,1737213033182,-3351.06360867,0.00019645,7]
[349485168,1737213033191,-1000.0,0.00019648,2]
[349485170,1737213033200,-150.0,0.00019653,2]
[349485173,1737213033211,-150.0,0.00019653,2]
[349485175,1737213033221,-673.66761328,0.00019654,7]
[349485177,1737213033230,-3351.06360867,0.00019656,7]
[349485179,1737213033240,-673.66761328,0.00019657,7]
[349485181,1737213033250,-153.80145117,0.00019657,2]
[349485183,1737213033260,-251.30464864,0.00019663,7]
[349485185,1737213033269,-3919.83058069,0.00019666,7]
[349485187,1737213033279,-150.0,0.00019667,2]
[349485189,1737213033288,-150.0,0.00019667,2]
[349485191,1737213033298,-150.0,0.00019668,2]
[349485193,1737213033307,-673.66761328,0.00019668,7]
[349485195,1737213033318,-22535.54174695,0.00019671,7]
[349485197,1737213033330,-2176.09119283,0.00019671,7]
[349485200,1737213033342,-509.93491965,0.00019671,7]
[349485202,1737213033351,-500.0,0.00019673,2]
[349485204,1737213033360,-207.0626213,0.00019673,2]
[349485206,1737213033370,-150.0,0.00019673,2]
[349485208,1737213033380,-152.0,0.00019674,3]
[349485210,1737213033390,-3919.83058069,0.00019674,7]
[349485212,1737213033399,-25221.56785943,0.00019674,7]
[349485214,1737213033409,-3351.06360867,0.00019676,7]
[349485216,1737213033418,-200.0,0.00019677,7]
[349485218,1737213033427,-150.0,0.00019679,2]
[349485227,1737213033610,-150.0,0.00019684,2]
[349485228,1737213033630,-200.0,0.00019688,7]
[349485229,1737213033640,-507.98925711,0.00019689,2]
[349485230,1737213033649,-500.0,0.00019689,2]
[349485231,1737213033659,-500.0,0.00019689,2]
[349485232,1737213033671,-500.0,0.00019689,2]
[349485233,1737213033681,-500.0,0.00019689,2]
[349485234,1737213033690,-500.0,0.00019689,2]
[349485235,1737213033700,-500.0,0.00019689,2]
[349485236,1737213033710,-1479.14,0.00019689,2]
[349485237,1737213033719,-500.0,0.00019689,2]
[349485238,1737213033729,-1479.14,0.00019689,2]
[349485239,1737213033739,-500.0,0.00019689,2]
[349485240,1737213033749,-500.0,0.00019689,2]
[349485241,1737213033759,-500.0,0.00019689,2]
[349485242,1737213033769,-556.78,0.00019689,2]
[349485243,1737213033778,-500.0,0.00019689,2]
[349485244,1737213033788,-6980.38564086,0.00019689,7]
[349485245,1737213033800,-1384.31465492,0.00019689,7]
[349485246,1737213033892,-4920.0,0.00019689,7]
[349485247,1737213033904,-5043.49999999,0.00019689,7]
[349485248,1737213033920,-609.89088635,0.00019689,7]
[349485249,1737213033931,-980.01,0.00019689,7]
[349485250,1737213033943,-5303.46667731,0.00019689,7]
[349485251,1737213033953,-575.20677869,0.0001969,2]
[349485252,1737213033963,-264.0,0.0001969,2]
[349485253,1737213033973,-150.0,0.0001969,2]
[349485254,1737213033982,-233.377542,0.0001969,2]
[349485255,1737213033991,-233.377542,0.0001969,2]
[349485256,1737213034001,-151.0,0.0001969,2]
[349485257,1737213034011,-17399.11925678,0.0001969,2]
[349485258,1737213034023,-30186.78344322,0.0001969,2]
[349485259,1737213034032,-29086.5960937,0.0001969,2]
[349485260,1737213034044,-73902.30290762,0.0001969,2]
[349485261,1737213034054,-200.0,0.0001969,7]
[349485262,1737213034066,-150.0,0.00019696,2]
[349485263,1737213034076,-251.30464864,0.00019696,7]
[349485264,1737213034085,-17801.33767923,0.00019699,2]
[349485265,1737213034095,-503.29166603,0.00019699,2]
[349485266,1737213034105,-1058.665786,0.00019699,2]
[349485267,1737213034115,-500.0,0.00019699,2]
[349485268,1737213034124,-1058.665786,0.00019699,2]
[349485269,1737213034133,-151.0,0.00019699,2]
[349485270,1737213034143,-500.0,0.00019699,2]
[349485271,1737213034152,-500.0,0.00019699,2]
[349485272,1737213034162,-151.0,0.00019699,2]
[349485273,1737213034172,-500.0,0.00019699,2]
[349485274,1737213034181,-151.0,0.00019699,2]
[349485275,1737213034191,-151.0,0.00019699,2]
[349485276,1737213034201,-500.0,0.00019699,2]
[349485277,1737213034211,-718.296221,0.00019699,2]
[349485278,1737213034220,-500.0,0.00019699,2]
[349485279,1737213034230,-718.296221,0.00019699,2]
[349485280,1737213034239,-184.197365,0.00019699,2]
[349485281,1737213034250,-184.197365,0.00019699,2]
[349485282,1737213034259,-151.0,0.00019699,2]
[349485283,1737213034269,-151.0,0.00019699,2]
[349485284,1737213034278,-500.0,0.00019699,2]
[349485285,1737213034288,-253.50019769,0.00019699,2]
[349485286,1737213034298,-500.0,0.00019699,2]
[349485287,1737213034307,-500.0,0.00019699,2]
[349485288,1737213034319,-229.06,0.00019699,2]
[349485289,1737213034328,-500.0,0.00019699,2]
[349485290,1737213034338,-500.0,0.00019699,2]
[349485291,1737213034348,-500.0,0.00019699,2]
[349485292,1737213034358,-500.0,0.00019699,2]
[349485293,1737213034368,-167.69,0.00019699,2]
[349485294,1737213034377,-20507.10140981,0.000197,2]
[349485295,1737213034386,-43056.55374882,0.000197,2]
[349485296,1737213034399,-47762.36576115,0.000197,2]
[349485297,1737213034409,-151.0,0.000197,2]
[349485298,1737213034418,-151.0,0.000197,2]
[349485299,1737213034428,-151.0,0.000197,2]
[349485300,1737213034437,-144.77413045,0.000197,2]
[349485301,1737213034449,-6.22586955,0.000197,2]
[349485302,1737213034458,-493.77413045,0.000197,2]
[349485303,1737213038060,-500.0,0.000192,2]
[349485304,1737213038070,-436.14503955,0.000197,2]
[349485305,1737213038079,-929.91917,0.000197,2]
[349485306,1737213038089,-150.0,0.000197,2]
[349485307,1737213038098,-152.155508,0.000197,2]
[349485308,1737213038107,-151.0,0.000197,2]
[349485309,1737213038116,-151.0,0.000197,2]
[349485310,1737213038126,-1058.665786,0.000197,2]
[349485311,1737213038135,-1058.665786,0.000197,2]
[349485312,1737213038145,-1058.665786,0.000197,2]
[349485313,1737213038154,-1058.665786,0.000197,2]
[349485314,1737213038164,-151.0,0.000197,2]
[349485315,1737213038173,-151.0,0.000197,2]
[349485316,1737213038183,-151.0,0.000197,2]
[349485317,1737213038193,-151.0,0.000197,2]
[349485318,1737213038202,-151.0,0.000197,2]
[349485319,1737213038211,-151.0,0.000197,2]
[349485320,1737213038221,-718.296221,0.000197,2]
[349485321,1737213038230,-718.296221,0.000197,2]
[349485322,1737213038239,-184.197365,0.000197,2]
[349485323,1737213038248,-184.197365,0.000197,2]
[349485324,1737213038258,-151.0,0.000197,2]
[349485325,1737213038267,-151.0,0.000197,2]
[349485326,1737213038276,-400.0,0.000197,7]
[349485327,1737213038286,-233.377542,0.000197,2]
[349485328,1737213038295,-233.377542,0.000197,2]
[349485329,1737213038304,-233.377542,0.000197,2]
[349485330,1737213038314,-233.377542,0.000197,2]
[349485331,1737213038323,-151.0,0.000197,2]
[349485332,1737213038333,-151.0,0.000197,2]
[349485333,1737213038343,-150.0,0.00019705,2]
[349485334,1737213038359,-1000.0,0.00019706,2]
[349485335,1737213038371,-151.0,0.0001971,2]
[349485336,1737213038382,-929.91917,0.0001971,2]
[349485337,1737213038392,-929.91917,0.0001971,2]
[349485338,1737213038401,-151.0,0.0001971,2]
[349485339,1737213038410,-151.0,0.0001971,2]
[349485340,1737213038420,-500.0,0.0001971,2]
[349485341,1737213038430,-451.53,0.0001971,2]
[349485342,1737213038439,-500.0,0.0001971,2]
[349485343,1737213038449,-150.0,0.00019712,2]
[349485344,1737213038459,-150.0,0.00019716,2]
[349485345,1737213038469,-150.0,0.00019717,2]
[349485346,1737213038478,-151.0,0.0001972,2]
[349485347,1737213038488,-152.181161,0.00019724,2]
[349485348,1737213038497,-151.0,0.00019724,2]
[349485349,1737213038507,-1000.0,0.00019725,2]
[349485350,1737213038517,-1000.0,0.00019726,14]
[349485351,1737213038526,-319.356524,0.00019726,14]
[349485352,1737213038536,-150.0,0.00019728,2]
[349485353,1737213038547,-153.80145117,0.00019728,2]
[349485354,1737213038557,-150.0,0.00019731,2]
[349485355,1737213038567,-300.0,0.00019734,2]
[349485356,1737213038576,-150.0,0.00019735,2]
[349485357,1737213038586,-1175.0,0.00019735,2]
[349485358,1737213038595,-817.11713791,0.00019735,2]
[349485359,1737213038728,-3082.88286209,0.00019735,2]
[349485360,1737213038739,-1072.734,0.00019735,2]
[349485361,1737213038749,-44.38313791,0.00019745,2]
[349485362,1737213038761,-105.61686209,0.00019745,2]
[349485363,1737213038771,-150.0,0.00019745,2]
[349485364,1737213038781,-150.0,0.00019751,2]
[349485366,1737213038791,-150.0,0.00019758,2]
[349485367,1737213038801,-150.0,0.00019759,2]
[349485368,1737213038811,-150.0,0.00019761,2]
[349485370,1737213038822,-187.7062275,0.00019762,2]
[349485371,1737213038832,-151.0,0.00019763,2]
[349485372,1737213038842,-1909.24791275,0.00019763,2]
[349485373,1737213038853,-107.75208725,0.00019763,2]
[349485374,1737213038862,-1269.0,0.00019763,2]
[349485375,1737213038872,-150.0,0.00019763,2]
[349485376,1737213038881,-567.0,0.00019763,2]
[349485377,1737213038890,-635.0,0.00019763,2]
[349485378,1737213038900,-1863.0,0.00019763,2]
[349485379,1737213038909,-29.30387556,0.00019763,2]
[349485380,1737213038922,-980.22,0.00019763,2]
[349485381,1737213038934,-250.47612444,0.00019763,2]
[349485382,1737213038943,-2946.0,0.00019763,2]
[349485383,1737213038953,-820.0,0.00019763,2]
[349485384,1737213038962,-907.0,0.00019763,2]
[349485385,1737213038971,-538.143,0.00019763,2]
[349485386,1737213038981,-1132.38087554,0.00019763,2]
[349485387,1737213038992,-2847.61912446,0.00019763,2]
[349485388,1737213039002,-150.0,0.00019769,2]
[349485389,1737213039011,-150.0,0.0001978,2]
[349485390,1737213039021,-150.0,0.00019782,2]
[349485391,1737213039030,-150.0,0.00019785,2]
[349485392,1737213039041,-150.0,0.00019786,2]
[349485393,1737213039051,-500.0,0.00019787,2]
[349485394,1737213039060,-500.0,0.00019787,2]
[349485395,1737213039070,-500.0,0.00019787,2]
[349485396,1737213039079,-1479.14,0.00019787,2]
[349485397,1737213039089,-500.0,0.00019787,2]
[349485398,1737213039100,-500.0,0.00019789,2]
[349485399,1737213039109,-500.0,0.00019789,2]
[349485400,1737213039118,-500.0,0.00019789,2]
[349485401,1737213039128,-500.0,0.00019789,2]
[349485402,1737213039137,-500.0,0.00019789,2]
[349485403,1737213039147,-500.0,0.00019789,2]
[349485404,1737213039156,-315.68402906,0.00019789,2]
[349485405,1737213039166,-612.37732378,0.00019789,2]
[349485406,1737213039175,-1230.15,0.00019789,2]
[349485407,1737213039186,-1230.15,0.00019789,2]
[349485408,1737213039195,-500.0,0.00019789,2]
[349485409,1737213039205,-442.58637813,0.00019789,2]
[349485410,1737213039217,-57.41362187,0.00019789,2]
[349485411,1737213039227,-504.79082918,0.00019789,2]
[349485412,1737213039237,-248.29410618,0.00019789,2]
[349485413,1737213039246,-465.83343456,0.00019789,2]
[349485414,1737213039256,-500.0,0.00019789,2]
[349485415,1737213039266,-622.53075865,0.00019789,2]
[349485416,1737213039275,-500.0,0.00019789,2]
[349485417,1737213039284,-500.0,0.00019789,2]
[349485418,1737213039293,-500.0,0.00019789,2]
[349485419,1737213039303,-500.0,0.00019789,2]
[349485420,1737213039312,-293.3843614,0.00019789,2]
[349485421,1737213039321,-307.84858956,0.00019789,2]
[349485422,1737213039333,-192.15141044,0.00019789,2]
[349485423,1737213039343,-85.2492624,0.00019789,2]
[349485424,1737213039358,-414.7507376,0.00019789,2]
[349485425,1737213039368,-551.59850257,0.00019789,2]
[349485426,1737213039378,-30.41830987,0.00019789,2]
[349485427,1737213039389,-469.58169013,0.00019789,2]
[349485428,1737213039399,-418.29,0.00019789,2]
[349485429,1737213039409,-500.0,0.00019789,2]
[349485430,1737213039418,-500.0,0.00019789,2]
[349485431,1737213039433,-500.0,0.00019789,2]
[349485432,1737213039449,-500.0,0.00019789,2]
[349485433,1737213039460,-500.0,0.00019789,2]
[349485434,1737213039469,-500.0,0.00019789,2]
[349485435,1737213039479,-131.79717987,0.00019789,2]
[349485436,1737213039491,-144.05282013,0.00019789,2]
[349485437,1737213039500,-500.0,0.00019789,2]
[349485438,1737213039510,-500.0,0.00019789,2]
[349485439,1737213039520,-500.0,0.00019789,2]
[349485440,1737213039529,-500.0,0.00019789,2]
[349485441,1737213039539,-179.35,0.00019789,2]
[349485442,1737213039548,-500.0,0.00019789,2]
[349485443,1737213039558,-500.0,0.00019789,2]
[349485444,1737213039568,-500.0,0.00019789,2]
[349485445,1737213039578,-500.0,0.00019789,2]
[349485446,1737213039588,-500.0,0.00019789,2]
[349485447,1737213039597,-500.0,0.00019789,2]
[349485448,1737213039607,-6034.09719151,0.0001979,2]
[349485449,1737213039619,-286.14575056,0.0001979,2]
[349485450,1737213039660,-77.55495341,0.0001979,2]
[349485451,1737213039674,-25794.82378564,0.0001979,2]
[349485452,1737213039683,-151.0,0.0001979,2]
[349485453,1737213039693,-151.0,0.0001979,2]